[Event "*** Titled Tuesday Blitz"]
[Site "Chess.com"]
[Date "2020.11.03"]
[Round "2"]
[White "TorFredrikKaasen"]
[Black "Skatchkov_V"]
[Result "0-1"]
[WhiteElo "2691"]
[BlackElo "2487"]
[TimeControl "180+1"]
[EndTime "10:20:53 PST"]
[Termination "Skatchkov_V won by resignation"]

1. e4 {[%clk 0:03:00.9]} 1... e5 {[%clk 0:02:59.6]} 2. Nf3 {[%clk 0:03:00.1]}
2... Nf6 {[%clk 0:03:00]} 3. d4 {[%clk 0:02:59]} 3... Nxe4 {[%clk 0:02:59.4]} 4.
Bd3 {[%clk 0:02:58.5]} 4... Nc6 {[%clk 0:03:00.1]} 5. d5 {[%clk 0:02:48.5]} 5...
Nf6 {[%clk 0:02:59.5]} 6. Be2 {[%clk 0:02:36.9]} 6... Ne7 {[%clk 0:02:51.6]} 7.
Nxe5 {[%clk 0:02:29.4]} 7... Nexd5 {[%clk 0:02:42.3]} 8. O-O {[%clk 0:02:28.8]}
8... Be7 {[%clk 0:02:38]} 9. c4 {[%clk 0:02:17.9]} 9... Nb6 {[%clk 0:02:37.8]}
10. Re1 {[%clk 0:02:12.3]} 10... d6 {[%clk 0:02:37.4]} 11. Nf3 {[%clk 0:02:12]}
11... O-O {[%clk 0:02:36.9]} 12. Nc3 {[%clk 0:02:11.8]} 12... Bg4 {[%clk
0:02:32.1]} 13. b3 {[%clk 0:02:06.8]} 13... Re8 {[%clk 0:02:24.6]} 14. Bb2
{[%clk 0:02:06.6]} 14... Qd7 {[%clk 0:02:25.2]} 15. h3 {[%clk 0:02:05.4]} 15...
Bh5 {[%clk 0:02:25.1]} 16. Ne5 {[%clk 0:01:42.5]} 16... Bxe2 {[%clk 0:01:55.6]}
17. Nxd7 {[%clk 0:01:40.1]} 17... Bxd1 {[%clk 0:01:55.8]} 18. Nxb6 {[%clk
0:01:37.1]} 18... axb6 {[%clk 0:01:52]} 19. Raxd1 {[%clk 0:01:37.5]} 19... Bf8
{[%clk 0:01:49.6]} 20. Nb5 {[%clk 0:01:34.8]} 20... Rxe1+ {[%clk 0:01:44.4]} 21.
Rxe1 {[%clk 0:01:35.7]} 21... c6 {[%clk 0:01:37.2]} 22. Nc3 {[%clk 0:01:33]}
22... Nd7 {[%clk 0:01:31.3]} 23. f4 {[%clk 0:01:29.3]} 23... Nc5 {[%clk
0:01:25.7]} 24. Rd1 {[%clk 0:01:28.5]} 24... f6 {[%clk 0:01:06.5]} 25. Kf2
{[%clk 0:01:20]} 25... Kf7 {[%clk 0:01:03.3]} 26. g4 {[%clk 0:01:11.8]} 26...
Ke6 {[%clk 0:00:56.1]} 27. Ba1 {[%clk 0:00:57.5]} 27... Kd7 {[%clk 0:00:53.6]}
28. b4 {[%clk 0:00:55.3]} 28... Ne6 {[%clk 0:00:51.6]} 29. f5 {[%clk 0:00:52.8]}
29... Nd8 {[%clk 0:00:46.5]} 30. a4 {[%clk 0:00:45.9]} 30... Nf7 {[%clk
0:00:45.9]} 31. c5 {[%clk 0:00:19.3]} 31... bxc5 {[%clk 0:00:46.1]} 32. bxc5
{[%clk 0:00:20.2]} 32... d5 {[%clk 0:00:46.5]} 33. Rb1 {[%clk 0:00:13.9]} 33...
Bxc5+ {[%clk 0:00:46.3]} 34. Kg2 {[%clk 0:00:12.4]} 34... Nd6 {[%clk 0:00:46.2]}
35. Bb2 {[%clk 0:00:10.4]} 35... Bd4 {[%clk 0:00:45]} 36. Nxd5 {[%clk
0:00:08.9]} 36... cxd5 {[%clk 0:00:42.3]} 37. Bxd4 {[%clk 0:00:08.8]} 37... Rxa4
{[%clk 0:00:42.6]} 38. Bc5 {[%clk 0:00:09.5]} 38... Ne4 {[%clk 0:00:38.5]} 39.
Bf8 {[%clk 0:00:08.4]} 39... g6 {[%clk 0:00:37.6]} 40. Rxb7+ {[%clk 0:00:07.8]}
40... Ke8 {[%clk 0:00:36.9]} 41. Bh6 {[%clk 0:00:06.7]} 41... Ra2+ {[%clk
0:00:34.3]} 42. Kf3 {[%clk 0:00:06.4]} 42... Ra3+ {[%clk 0:00:34.5]} 43. Kg2
{[%clk 0:00:06.9]} 43... g5 {[%clk 0:00:24.4]} 44. Rxh7 {[%clk 0:00:06.3]} 44...
d4 {[%clk 0:00:25]} 45. Rh8+ {[%clk 0:00:06.8]} 45... Kd7 {[%clk 0:00:17.3]} 46.
Rh7+ {[%clk 0:00:07.3]} 46... Kc6 {[%clk 0:00:17.1]} 47. Re7 {[%clk 0:00:03.5]}
47... Nd6 {[%clk 0:00:10.6]} 48. Re6 {[%clk 0:00:02.8]} 48... Kd5 {[%clk
0:00:10.4]} 49. Bf8 {[%clk 0:00:02.6]} 49... Ra2+ {[%clk 0:00:10.5]} 50. Kf3
{[%clk 0:00:02.7]} 50... Nc4 {[%clk 0:00:10.2]} 51. Re8 {[%clk 0:00:03.1]} 51...
Ne5+ {[%clk 0:00:10.5]} 52. Kg3 {[%clk 0:00:02.9]} 52... d3 {[%clk 0:00:11.1]}
53. Rd8+ {[%clk 0:00:03.4]} 53... Ke4 {[%clk 0:00:11.5]} 54. Bg7 {[%clk
0:00:03.9]} 54... d2 {[%clk 0:00:09.5]} 55. Bxf6 {[%clk 0:00:04]} 55... Nd3
{[%clk 0:00:10.1]} 56. Re8+ {[%clk 0:00:03.1]} 56... Kd5 {[%clk 0:00:10.7]} 57.
Rd8+ {[%clk 0:00:03.5]} 57... Kc4 {[%clk 0:00:11.3]} 58. Rd4+ {[%clk 0:00:03.6]}
58... Kc3 {[%clk 0:00:08.7]} 59. Ra4+ {[%clk 0:00:03.7]} 59... Kb3 {[%clk
0:00:08.4]} 60. Rxa2 {[%clk 0:00:01.7]} 60... Kxa2 {[%clk 0:00:09.2]} 61. Bxg5
{[%clk 0:00:02]} 61... d1=Q {[%clk 0:00:09.6]} 62. Be3 {[%clk 0:00:02.4]} 62...
Qe1+ {[%clk 0:00:09.8]} 63. Kf3 {[%clk 0:00:03.1]} 63... Qf1+ {[%clk 0:00:10.2]}
64. Ke4 {[%clk 0:00:04]} 64... Nf2+ {[%clk 0:00:09.7]} 65. Bxf2 {[%clk
0:00:03.9]} 65... Qxf2 {[%clk 0:00:10.6]} 66. g5 {[%clk 0:00:04.2]} 66... Qg2+
{[%clk 0:00:10.4]} 67. Kf4 {[%clk 0:00:04.6]} 67... Kb3 {[%clk 0:00:10.5]} 68.
f6 {[%clk 0:00:03.7]} 68... Kc4 {[%clk 0:00:11.1]} 69. f7 {[%clk 0:00:03.9]}
69... Qf2+ {[%clk 0:00:11.6]} 70. Ke5 {[%clk 0:00:03.4]} 70... Qxf7 {[%clk
0:00:12.1]} 71. h4 {[%clk 0:00:03.3]} 71... Qg6 {[%clk 0:00:12.6]} 72. Kf4
{[%clk 0:00:03.5]} 72... Kd5 {[%clk 0:00:12.7]} 73. Kg4 {[%clk 0:00:04.4]} 73...
Ke5 {[%clk 0:00:13.3]} 74. h5 {[%clk 0:00:05.3]} 74... Qe4+ {[%clk 0:00:13.4]}
0-1

[Event "*** Titled Tuesday Blitz"]
[Site "Chess.com"]
[Date "2020.11.03"]
[Round "2"]
[White "Fandorine"]
[Black "juancruzarias"]
[Result "1/2-1/2"]
[WhiteElo "2839"]
[BlackElo "2555"]
[TimeControl "180+1"]
[EndTime "10:21:23 PST"]
[Termination "Game drawn by agreement"]

1. Nf3 {[%clk 0:03:00.9]} 1... e6 {[%clk 0:02:57]} 2. g3 {[%clk 0:03:00.3]} 2...
f5 {[%clk 0:02:57.3]} 3. Bg2 {[%clk 0:02:59.8]} 3... Nf6 {[%clk 0:02:57.8]} 4.
O-O {[%clk 0:02:59.8]} 4... d5 {[%clk 0:02:58.3]} 5. d3 {[%clk 0:02:59.9]} 5...
Nc6 {[%clk 0:02:58.6]} 6. c4 {[%clk 0:02:59.4]} 6... dxc4 {[%clk 0:02:58.4]} 7.
dxc4 {[%clk 0:02:59.4]} 7... Qxd1 {[%clk 0:02:59.3]} 8. Rxd1 {[%clk 0:02:59.7]}
8... Bc5 {[%clk 0:02:53.1]} 9. Nc3 {[%clk 0:02:58]} 9... Bd7 {[%clk 0:02:53.3]}
10. Bf4 {[%clk 0:02:49.9]} 10... e5 {[%clk 0:02:53.6]} 11. Nxe5 {[%clk
0:02:35.1]} 11... Nxe5 {[%clk 0:02:53]} 12. Bxe5 {[%clk 0:02:36]} 12... Bxf2+
{[%clk 0:02:53.2]} 13. Kxf2 {[%clk 0:02:36.9]} 13... Ng4+ {[%clk 0:02:53.5]} 14.
Kg1 {[%clk 0:02:36.9]} 14... Nxe5 {[%clk 0:02:54]} 15. b3 {[%clk 0:02:30.4]}
15... c6 {[%clk 0:02:39.7]} 16. e4 {[%clk 0:02:28]} 16... O-O {[%clk 0:02:38.5]}
17. exf5 {[%clk 0:02:25]} 17... Bxf5 {[%clk 0:02:39.4]} 18. Na4 {[%clk
0:02:18.3]} 18... Bg4 {[%clk 0:02:35]} 19. Rd2 {[%clk 0:02:10.2]} 19... Rae8
{[%clk 0:02:29.4]} 20. Nc5 {[%clk 0:02:05.9]} 20... b6 {[%clk 0:02:29.8]} 21.
Ne4 {[%clk 0:01:48.8]} 21... Nf3+ {[%clk 0:02:13.8]} 22. Bxf3 {[%clk 0:01:48.9]}
22... Bxf3 {[%clk 0:02:12]} 23. Nc3 {[%clk 0:01:44]} 23... Re3 {[%clk
0:02:10.1]} 24. Rc1 {[%clk 0:01:43]} 24... Bg4 {[%clk 0:02:08.3]} 25. Rf2 {[%clk
0:01:14.4]} 25... Rfe8 {[%clk 0:02:08]} 26. Rf4 {[%clk 0:01:08.9]} 26... Bh3
{[%clk 0:02:07.3]} 27. Kf2 {[%clk 0:00:48.9]} 27... Rd3 {[%clk 0:01:59.2]} 28.
Rc2 {[%clk 0:00:47.4]} 28... Red8 {[%clk 0:01:26.4]} 29. Ke2 {[%clk 0:00:39.4]}
29... R3d7 {[%clk 0:01:12]} 30. g4 {[%clk 0:00:34.3]} 30... g5 {[%clk 0:01:05]}
31. Re4 {[%clk 0:00:29.5]} 31... Rd4 {[%clk 0:00:44.5]} 32. Rxd4 {[%clk
0:00:19.3]} 32... Rxd4 {[%clk 0:00:44.7]} 33. Ke3 {[%clk 0:00:19.9]} 33... Rxg4
{[%clk 0:00:41]} 34. Ne4 {[%clk 0:00:20.5]} 34... Rg1 {[%clk 0:00:38]} 35. Ng3
{[%clk 0:00:09.6]} 35... Kf7 {[%clk 0:00:34.1]} 36. c5 {[%clk 0:00:08.3]} 36...
b5 {[%clk 0:00:31.5]} 37. Kd4 {[%clk 0:00:08.5]} 37... Rd1+ {[%clk 0:00:26.1]}
38. Ke3 {[%clk 0:00:06.5]} 38... Ke6 {[%clk 0:00:25.6]} 39. Ne4 {[%clk 0:00:07]}
39... Bf5 {[%clk 0:00:23.2]} 40. Nxg5+ {[%clk 0:00:05.6]} 40... Kf6 {[%clk
0:00:23.5]} 41. Rg2 {[%clk 0:00:06.2]} 41... Re1+ {[%clk 0:00:17.3]} 42. Kf4
{[%clk 0:00:06.4]} 42... Rf1+ {[%clk 0:00:16.8]} 43. Ke3 {[%clk 0:00:06.9]}
43... Rc1 {[%clk 0:00:14.7]} 44. Nf3 {[%clk 0:00:04]} 44... Rxc5 {[%clk
0:00:14.9]} 45. Nd4 {[%clk 0:00:04.2]} 45... Rc3+ {[%clk 0:00:15.2]} 46. Kf4
{[%clk 0:00:04.4]} 46... Rc1 {[%clk 0:00:13.3]} 47. Nxf5 {[%clk 0:00:04.2]}
47... Rf1+ {[%clk 0:00:13.9]} 48. Ke4 {[%clk 0:00:05.1]} 48... Rxf5 {[%clk
0:00:14.8]} 49. Rg8 {[%clk 0:00:05.1]} 49... Rh5 {[%clk 0:00:14.8]} 50. Ra8
{[%clk 0:00:04.7]} 50... Ke6 {[%clk 0:00:13.6]} 51. Rxa7 {[%clk 0:00:04.7]}
51... Kd6 {[%clk 0:00:13]} 52. a4 {[%clk 0:00:03.3]} 52... bxa4 {[%clk
0:00:13.9]} 53. bxa4 {[%clk 0:00:03.7]} 53... Rxh2 {[%clk 0:00:14]} 54. a5
{[%clk 0:00:04.1]} 54... Kc5 {[%clk 0:00:12.5]} 55. Rb7 {[%clk 0:00:04.6]} 55...
Ra2 {[%clk 0:00:11.1]} 56. Rxh7 {[%clk 0:00:04.1]} 56... Rxa5 {[%clk 0:00:11.6]}
57. Kd3 {[%clk 0:00:05]} 57... Ra3+ {[%clk 0:00:10.5]} 58. Kc2 {[%clk
0:00:05.3]} 58... Rg3 {[%clk 0:00:11.1]} 59. Rh5+ {[%clk 0:00:05.5]} 59... Kb4
{[%clk 0:00:11.5]} 60. Rh4+ {[%clk 0:00:06]} 60... Kb5 {[%clk 0:00:12.2]} 61.
Rh5+ {[%clk 0:00:06.3]} 61... c5 {[%clk 0:00:12.9]} 62. Rh4 {[%clk 0:00:06.8]}
62... Rf3 {[%clk 0:00:13.4]} 63. Rg4 {[%clk 0:00:06.8]} 63... Rf5 {[%clk
0:00:13.5]} 64. Rh4 {[%clk 0:00:07]} 64... Rf7 {[%clk 0:00:14.1]} 65. Kc3 {[%clk
0:00:07.3]} 65... Ra7 {[%clk 0:00:14.6]} 66. Kb3 {[%clk 0:00:07.4]} 66... Rg7
{[%clk 0:00:12.8]} 67. Kc3 {[%clk 0:00:07.7]} 67... Rg3+ {[%clk 0:00:12.7]} 68.
Kc2 {[%clk 0:00:08.3]} 68... c4 {[%clk 0:00:13]} 69. Rh5+ {[%clk 0:00:07.7]}
69... Kb4 {[%clk 0:00:13.2]} 70. Rh8 {[%clk 0:00:05.2]} 70... Rg2+ {[%clk
0:00:13.4]} 71. Kc1 {[%clk 0:00:05.7]} 71... Kc3 {[%clk 0:00:12.7]} 72. Rh3+
{[%clk 0:00:05.6]} 72... Kb4 {[%clk 0:00:13.1]} 73. Rf3 {[%clk 0:00:06.2]} 73...
Re2 {[%clk 0:00:10.4]} 74. Rh3 {[%clk 0:00:06]} 74... Re7 {[%clk 0:00:10.5]} 75.
Rf3 {[%clk 0:00:05.9]} 75... Ra7 {[%clk 0:00:10.6]} 76. Rh3 {[%clk 0:00:06.4]}
76... Ra2 {[%clk 0:00:11.2]} 77. Kb1 {[%clk 0:00:06]} 77... Rf2 {[%clk
0:00:10.9]} 78. Kc1 {[%clk 0:00:06.3]} 78... Rf1+ {[%clk 0:00:11.5]} 79. Kc2
{[%clk 0:00:05.9]} 79... Rf7 {[%clk 0:00:11.9]} 80. Rg3 {[%clk 0:00:05.7]} 80...
Rf2+ {[%clk 0:00:12.4]} 81. Kc1 {[%clk 0:00:05.9]} 81... Rf8 {[%clk 0:00:12.8]}
82. Kc2 {[%clk 0:00:05.7]} 82... Rd8 {[%clk 0:00:13.4]} 83. Kc1 {[%clk 0:00:06]}
83... Rd4 {[%clk 0:00:11.7]} 84. Rh3 {[%clk 0:00:06]} 84... Rd5 {[%clk
0:00:12.1]} 85. Rg3 {[%clk 0:00:06.2]} 85... c3 {[%clk 0:00:12.2]} 86. Rg8
{[%clk 0:00:05.9]} 86... Kc4 {[%clk 0:00:11.8]} 87. Rc8+ {[%clk 0:00:04.7]}
87... Kd3 {[%clk 0:00:12]} 88. Rh8 {[%clk 0:00:05.1]} 88... Re5 {[%clk
0:00:11.5]} 89. Rd8+ {[%clk 0:00:05.1]} 89... Ke3 {[%clk 0:00:10]} 90. Kc2
{[%clk 0:00:05.1]} 1/2-1/2

[Event "*** Titled Tuesday Blitz"]
[Site "Chess.com"]
[Date "2020.11.03"]
[Round "3"]
[White "alexrustemov"]
[Black "GigaQuparadze"]
[Result "1-0"]
[WhiteElo "2674"]
[BlackElo "2859"]
[TimeControl "180+1"]
[EndTime "10:24:57 PST"]
[Termination "alexrustemov won by resignation"]

1. d4 {[%clk 0:03:00.9]} 1... e6 {[%clk 0:02:59.8]} 2. Nf3 {[%clk 0:02:59.8]}
2... c5 {[%clk 0:02:59.4]} 3. c4 {[%clk 0:02:59]} 3... cxd4 {[%clk 0:02:59.1]}
4. Nxd4 {[%clk 0:02:59.9]} 4... a6 {[%clk 0:02:59.5]} 5. Nc3 {[%clk 0:02:53.8]}
5... Nf6 {[%clk 0:02:59.3]} 6. e3 {[%clk 0:02:48]} 6... d5 {[%clk 0:02:57.7]} 7.
cxd5 {[%clk 0:02:47.3]} 7... Nxd5 {[%clk 0:02:58.6]} 8. Nxd5 {[%clk 0:02:44]}
8... Qxd5 {[%clk 0:02:59.5]} 9. Bd2 {[%clk 0:02:41.7]} 9... Nc6 {[%clk
0:02:54.9]} 10. Nxc6 {[%clk 0:02:38.1]} 10... Qxc6 {[%clk 0:02:55.8]} 11. Rc1
{[%clk 0:02:37.3]} 11... Qb6 {[%clk 0:02:56]} 12. Bc3 {[%clk 0:02:35.3]} 12...
Bb4 {[%clk 0:02:55.9]} 13. Qa4+ {[%clk 0:02:25.7]} 1-0

[Event "*** Titled Tuesday Blitz"]
[Site "Chess.com"]
[Date "2020.11.03"]
[Round "3"]
[White "KatarinaOstojic"]
[Black "salomez"]
[Result "1/2-1/2"]
[WhiteElo "2346"]
[BlackElo "2136"]
[TimeControl "180+1"]
[EndTime "10:25:05 PST"]
[Termination "Game drawn by agreement"]

1. d4 {[%clk 0:03:00.9]} 1... Nf6 {[%clk 0:02:59.7]} 2. Nf3 {[%clk 0:03:01.4]}
2... g6 {[%clk 0:02:59.2]} 3. Bg5 {[%clk 0:03:01.2]} 3... Bg7 {[%clk 0:02:57]}
4. Nbd2 {[%clk 0:03:01.7]} 4... d5 {[%clk 0:02:55.8]} 5. c3 {[%clk 0:03:02]}
5... O-O {[%clk 0:02:53.8]} 6. Bxf6 {[%clk 0:03:01.9]} 6... Bxf6 {[%clk
0:02:53.3]} 7. e4 {[%clk 0:03:01.9]} 7... dxe4 {[%clk 0:02:51.6]} 8. Nxe4 {[%clk
0:03:02.8]} 8... Bg7 {[%clk 0:02:52.5]} 9. Be2 {[%clk 0:03:03.3]} 9... b6 {[%clk
0:02:46.8]} 10. O-O {[%clk 0:03:02.7]} 10... Bb7 {[%clk 0:02:47]} 11. Ng3 {[%clk
0:03:03.3]} 11... Nd7 {[%clk 0:02:42.5]} 12. Re1 {[%clk 0:03:03.3]} 12... e5
{[%clk 0:02:41]} 13. Bb5 {[%clk 0:02:50.6]} 13... exd4 {[%clk 0:02:37]} 1/2-1/2

[Event "*** Titled Tuesday Blitz"]
[Site "Chess.com"]
[Date "2020.11.03"]
[Round "3"]
[White "HanSchut"]
[Black "Skat2704"]
[Result "0-1"]
[WhiteElo "2204"]
[BlackElo "2417"]
[TimeControl "180+1"]
[EndTime "10:25:50 PST"]
[Termination "Skat2704 won by resignation"]

1. e4 {[%clk 0:03:00.9]} 1... c6 {[%clk 0:03:00.1]} 2. d4 {[%clk 0:03:00.1]}
2... d5 {[%clk 0:03:00.4]} 3. e5 {[%clk 0:02:57.5]} 3... Bf5 {[%clk 0:02:59.8]}
4. Nf3 {[%clk 0:02:56.8]} 4... e6 {[%clk 0:02:59.4]} 5. Be2 {[%clk 0:02:57.4]}
5... Ne7 {[%clk 0:02:58.3]} 6. O-O {[%clk 0:02:54.2]} 6... c5 {[%clk 0:02:58.5]}
7. Be3 {[%clk 0:02:52.9]} 7... Nec6 {[%clk 0:02:57.9]} 8. Nc3 {[%clk 0:02:51.8]}
8... Nd7 {[%clk 0:02:57.6]} 9. Re1 {[%clk 0:02:27]} 9... Be7 {[%clk 0:02:55.2]}
10. a3 {[%clk 0:02:14]} 10... O-O {[%clk 0:02:53.2]} 11. dxc5 {[%clk 0:02:14.5]}
11... Bxc5 {[%clk 0:02:46]} 12. Bxc5 {[%clk 0:02:12.1]} 12... Nxc5 {[%clk
0:02:45.7]} 13. b4 {[%clk 0:02:01.1]} 13... Ne4 {[%clk 0:02:39.8]} 14. Nxe4
{[%clk 0:01:58.5]} 14... dxe4 {[%clk 0:02:32.5]} 15. Nd4 {[%clk 0:01:48.7]} 0-1

[Event "*** Titled Tuesday Blitz"]
[Site "Chess.com"]
[Date "2020.11.03"]
[Round "3"]
[White "snowlord"]
[Black "ZEN-22"]
[Result "1-0"]
[WhiteElo "2735"]
[BlackElo "2441"]
[TimeControl "180+1"]
[EndTime "10:26:15 PST"]
[Termination "snowlord won by checkmate"]

1. d4 {[%clk 0:03:00.9]} 1... Nf6 {[%clk 0:02:56.2]} 2. c4 {[%clk 0:03:00.4]}
2... d6 {[%clk 0:02:55.5]} 3. Nc3 {[%clk 0:02:59.8]} 3... Bf5 {[%clk 0:02:55.8]}
4. g3 {[%clk 0:02:59.1]} 4... e5 {[%clk 0:02:53.5]} 5. Bg2 {[%clk 0:02:58]} 5...
exd4 {[%clk 0:02:53.5]} 6. Qxd4 {[%clk 0:02:57.2]} 6... Nc6 {[%clk 0:02:52.9]}
7. Qd2 {[%clk 0:02:56.4]} 7... g6 {[%clk 0:02:49.2]} 8. b3 {[%clk 0:02:56.2]}
8... Bg7 {[%clk 0:02:48.8]} 9. Bb2 {[%clk 0:02:56.4]} 9... O-O {[%clk
0:02:48.9]} 10. Nh3 {[%clk 0:02:56.8]} 10... Re8 {[%clk 0:02:44.4]} 11. O-O
{[%clk 0:02:52.6]} 11... a5 {[%clk 0:02:44.2]} 12. Nf4 {[%clk 0:02:51.5]} 12...
Nd7 {[%clk 0:02:42]} 13. e4 {[%clk 0:02:44.9]} 13... Bg4 {[%clk 0:02:36.3]} 14.
f3 {[%clk 0:02:44.5]} 14... Be6 {[%clk 0:02:35.2]} 15. Ncd5 {[%clk 0:02:43]}
15... Nde5 {[%clk 0:02:27.7]} 16. a4 {[%clk 0:02:36.2]} 16... Bd7 {[%clk
0:02:22.6]} 17. Bc3 {[%clk 0:02:34]} 17... f5 {[%clk 0:02:21.9]} 18. exf5 {[%clk
0:02:32.6]} 18... Bxf5 {[%clk 0:02:21.7]} 19. Rad1 {[%clk 0:02:31.8]} 19... b6
{[%clk 0:02:19.2]} 20. Ne3 {[%clk 0:02:30]} 20... Bd7 {[%clk 0:02:17.4]} 21.
Nfd5 {[%clk 0:02:30.1]} 21... h5 {[%clk 0:02:12.7]} 22. f4 {[%clk 0:02:30]}
22... Ng4 {[%clk 0:02:11.2]} 23. Bxg7 {[%clk 0:02:30.7]} 23... Kxg7 {[%clk
0:02:11.1]} 24. Qc3+ {[%clk 0:02:31.1]} 24... Kh6 {[%clk 0:02:09.8]} 25. Nxg4+
{[%clk 0:02:30.4]} 25... Bxg4 {[%clk 0:02:08.7]} 26. Rde1 {[%clk 0:02:26.7]}
26... Nb4 {[%clk 0:02:02.7]} 27. Rxe8 {[%clk 0:02:23.8]} 27... Nxd5 {[%clk
0:01:59.5]} 28. Qh8# {[%clk 0:02:22.8]} 1-0

[Event "*** Titled Tuesday Blitz"]
[Site "Chess.com"]
[Date "2020.11.03"]
[Round "3"]
[White "enriquebutti"]
[Black "Cocaino74"]
[Result "1-0"]
[WhiteElo "1988"]
[BlackElo "2291"]
[TimeControl "180+1"]
[EndTime "10:26:57 PST"]
[Termination "enriquebutti won by checkmate"]

1. Nf3 {[%clk 0:03:00.9]} 1... d5 {[%clk 0:02:59.6]} 2. b3 {[%clk 0:03:01.2]}
2... c5 {[%clk 0:02:58.5]} 3. Bb2 {[%clk 0:03:01.6]} 3... f6 {[%clk 0:02:57.8]}
4. d4 {[%clk 0:03:01.5]} 4... cxd4 {[%clk 0:02:57.2]} 5. Qxd4 {[%clk 0:03:01]}
5... e5 {[%clk 0:02:56.6]} 6. Qh4 {[%clk 0:03:01.4]} 6... Be6 {[%clk 0:02:45.4]}
7. Nc3 {[%clk 0:03:00.7]} 7... Nc6 {[%clk 0:02:40.8]} 8. O-O-O {[%clk
0:03:00.7]} 8... Nge7 {[%clk 0:02:34.8]} 9. Nxd5 {[%clk 0:03:00.3]} 9... Nxd5
{[%clk 0:01:58.3]} 10. e4 {[%clk 0:03:00.2]} 10... Qa5 {[%clk 0:01:57.7]} 11.
exd5 {[%clk 0:02:59.4]} 11... Bxd5 {[%clk 0:01:58.6]} 12. Bc4 {[%clk 0:02:45.2]}
12... Bxf3 {[%clk 0:01:46.6]} 13. gxf3 {[%clk 0:02:44.9]} 13... Qxa2 {[%clk
0:01:39.7]} 14. Qg4 {[%clk 0:02:45]} 14... Be7 {[%clk 0:01:12.4]} 15. Qd7+
{[%clk 0:02:23.6]} 15... Kf8 {[%clk 0:01:12.3]} 16. Qe6 {[%clk 0:02:23.9]} 16...
Nd8 {[%clk 0:00:57.3]} 17. Rxd8+ {[%clk 0:02:23.3]} 17... Rxd8 {[%clk
0:00:57.9]} 18. Qf7# {[%clk 0:02:23.4]} 1-0

[Event "*** Titled Tuesday Blitz"]
[Site "Chess.com"]
[Date "2020.11.03"]
[Round "3"]
[White "Sviridov_Valery"]
[Black "shnitez"]
[Result "1-0"]
[WhiteElo "2730"]
[BlackElo "2529"]
[TimeControl "180+1"]
[EndTime "10:27:04 PST"]
[Termination "Sviridov_Valery won by resignation"]

1. Nf3 {[%clk 0:03:00.4]} 1... Nf6 {[%clk 0:02:59]} 2. g3 {[%clk 0:03:00.6]}
2... b6 {[%clk 0:02:57.7]} 3. Bg2 {[%clk 0:03:00.6]} 3... Bb7 {[%clk 0:02:58.6]}
4. O-O {[%clk 0:03:00.2]} 4... e6 {[%clk 0:02:58.1]} 5. c4 {[%clk 0:02:59]} 5...
Be7 {[%clk 0:02:57.5]} 6. d4 {[%clk 0:02:59.2]} 6... O-O {[%clk 0:02:57.4]} 7.
d5 {[%clk 0:02:59.5]} 7... exd5 {[%clk 0:02:57.3]} 8. Nh4 {[%clk 0:03:00.1]}
8... c6 {[%clk 0:02:57.7]} 9. cxd5 {[%clk 0:02:59.3]} 9... Nxd5 {[%clk
0:02:58.3]} 10. Nf5 {[%clk 0:02:59.8]} 10... Nc7 {[%clk 0:02:58.1]} 11. e4
{[%clk 0:02:59.8]} 11... d5 {[%clk 0:02:57.7]} 12. Nc3 {[%clk 0:03:00.3]} 12...
Bf6 {[%clk 0:02:39]} 13. exd5 {[%clk 0:02:59.4]} 13... Bxc3 {[%clk 0:02:31.5]}
14. bxc3 {[%clk 0:02:33.9]} 14... Nxd5 {[%clk 0:02:23.6]} 15. c4 {[%clk
0:02:33.3]} 15... Nf6 {[%clk 0:01:57.2]} 16. Bb2 {[%clk 0:02:23.6]} 16... Qxd1
{[%clk 0:01:35.8]} 17. Raxd1 {[%clk 0:02:24.5]} 17... Nbd7 {[%clk 0:01:36.4]}
18. Nxg7 {[%clk 0:02:22.9]} 18... Ba6 {[%clk 0:01:11.1]} 19. Nf5 {[%clk
0:02:21.8]} 19... Bxc4 {[%clk 0:01:05.7]} 20. Rxd7 {[%clk 0:02:20.3]} 1-0

[Event "*** Titled Tuesday Blitz"]
[Site "Chess.com"]
[Date "2020.11.03"]
[Round "3"]
[White "obliviate12"]
[Black "brunomorado"]
[Result "1-0"]
[WhiteElo "2713"]
[BlackElo "2441"]
[TimeControl "180+1"]
[EndTime "10:27:06 PST"]
[Termination "obliviate12 won by resignation"]

1. e4 {[%clk 0:03:00.9]} 1... c5 {[%clk 0:03:00]} 2. Nf3 {[%clk 0:03:00.9]} 2...
Nc6 {[%clk 0:03:00.4]} 3. Bb5 {[%clk 0:02:58.6]} 3... Nd4 {[%clk 0:02:59.3]} 4.
Nxd4 {[%clk 0:02:53]} 4... cxd4 {[%clk 0:03:00.2]} 5. O-O {[%clk 0:02:52.7]}
5... g6 {[%clk 0:03:00.6]} 6. c3 {[%clk 0:02:48]} 6... Bg7 {[%clk 0:03:00.4]} 7.
Re1 {[%clk 0:02:48.6]} 7... e6 {[%clk 0:02:59.7]} 8. e5 {[%clk 0:02:39.1]} 8...
Qb6 {[%clk 0:02:57.5]} 9. Na3 {[%clk 0:02:35.5]} 9... Ne7 {[%clk 0:02:55.7]} 10.
Nc4 {[%clk 0:02:34.1]} 10... Qc7 {[%clk 0:02:46]} 11. Nd6+ {[%clk 0:02:32]}
11... Kf8 {[%clk 0:02:45.4]} 12. cxd4 {[%clk 0:02:22]} 12... Nf5 {[%clk
0:02:33.6]} 13. b3 {[%clk 0:02:21.8]} 13... Nxd4 {[%clk 0:02:27.3]} 14. Ba3
{[%clk 0:02:18.2]} 14... Kg8 {[%clk 0:02:27.8]} 15. Rc1 {[%clk 0:02:14.9]} 15...
Qa5 {[%clk 0:02:20.5]} 16. Ba4 {[%clk 0:01:41.6]} 16... b5 {[%clk 0:01:46.9]}
17. Nxc8 {[%clk 0:01:37.6]} 17... bxa4 {[%clk 0:01:40.7]} 18. Ne7+ {[%clk
0:01:37.2]} 1-0

[Event "*** Titled Tuesday Blitz"]
[Site "Chess.com"]
[Date "2020.11.03"]
[Round "3"]
[White "Piotrek1979"]
[Black "GoltsevDmitry2000"]
[Result "1-0"]
[WhiteElo "2444"]
[BlackElo "2665"]
[TimeControl "180+1"]
[EndTime "10:27:06 PST"]
[Termination "Piotrek1979 won by resignation"]

1. d4 {[%clk 0:03:00.9]} 1... Nf6 {[%clk 0:02:59.5]} 2. Nf3 {[%clk 0:03:00.8]}
2... e6 {[%clk 0:02:59.4]} 3. g3 {[%clk 0:03:00.8]} 3... b6 {[%clk 0:02:58.3]}
4. Bg2 {[%clk 0:03:00.8]} 4... Bb7 {[%clk 0:02:59.2]} 5. O-O {[%clk 0:03:01]}
5... Be7 {[%clk 0:02:59.4]} 6. b3 {[%clk 0:03:00]} 6... O-O {[%clk 0:02:59.4]}
7. Bb2 {[%clk 0:03:00.1]} 7... c5 {[%clk 0:03:00.3]} 8. c4 {[%clk 0:02:57.9]}
8... d5 {[%clk 0:02:59.5]} 9. cxd5 {[%clk 0:02:54.7]} 9... Nxd5 {[%clk 0:02:56]}
10. Nc3 {[%clk 0:02:47.7]} 10... Nd7 {[%clk 0:02:54.2]} 11. Nxd5 {[%clk
0:02:44.2]} 11... Bxd5 {[%clk 0:02:55.1]} 12. Qd3 {[%clk 0:02:06.1]} 12... Bf6
{[%clk 0:02:50.3]} 13. Rfd1 {[%clk 0:01:57.9]} 13... cxd4 {[%clk 0:02:48.2]} 14.
Bxd4 {[%clk 0:01:56.7]} 14... Nc5 {[%clk 0:02:48.2]} 15. Bxf6 {[%clk 0:01:55]}
15... Qxf6 {[%clk 0:02:44.4]} 16. Qd4 {[%clk 0:01:55.1]} 16... Qe7 {[%clk
0:02:39.4]} 17. Ne5 {[%clk 0:01:48]} 17... Rad8 {[%clk 0:02:38.9]} 18. Qe3
{[%clk 0:01:41.2]} 18... Qb7 {[%clk 0:02:34.9]} 19. Bxd5 {[%clk 0:01:38.7]}
19... Rxd5 {[%clk 0:02:35.8]} 20. Rxd5 {[%clk 0:01:36.8]} 20... Qxd5 {[%clk
0:02:36.7]} 21. Rc1 {[%clk 0:01:36.6]} 21... Rd8 {[%clk 0:02:35.2]} 22. b4
{[%clk 0:01:33.7]} 22... Ne4 {[%clk 0:02:29.2]} 23. Nc6 {[%clk 0:01:32.8]} 23...
Rd7 {[%clk 0:02:18.4]} 24. Ne7+ {[%clk 0:01:32]} 24... Rxe7 {[%clk 0:02:02.9]}
25. Rc8+ {[%clk 0:01:30.6]} 1-0